{"text_format":"1","workbook":"xlsx","n_sheets":8,"sheets":["Sheet1","Control sheet","Dropdown lists","Conditional Formatting","Group box with buttons","Changes to make","Check boxes","_SSC"],"not_rendered":{"charts":0,"images":9,"macros":1,"external_links":0,"defined_names":2,"comments":0,"pivot_tables":0},"unopened":[],"bounds":{"document_bytes":16777216,"sheet_cells":100000,"rows_first":2000,"rows_last":500,"rows_between":2000,"halvings":0,"cell_chars":16384,"cell_head_chars":4096},"cells_cut":0,"cells_raw":0,"read":"whole","date_system":"1900"}

{"sheet":"Sheet1","index":0,"n_rows":53,"n_cols":13,"rows_kept":53,"cut":false,"hidden":false,"merged":[[49,1,49,5],[15,3,15,5],[39,2,39,4],[14,1,15,1],[16,3,16,5],[1,2,1,5],[2,2,2,5],[3,2,3,5],[4,2,4,5],[5,2,5,5],[0,2,0,5],[50,1,50,5],[48,1,48,5],[24,1,24,2],[52,1,52,5],[14,3,14,5],[46,1,46,2],[51,1,51,5],[10,1,10,5],[11,1,11,5],[12,1,12,5],[13,1,13,5],[6,1,6,5],[7,1,7,5],[8,1,8,5],[9,1,9,5]]}
[1,"Slides & Photos","Slide Show                 or                 Data Disk?"]
[2,"Order Form\nFill in on-line, Print Out, Send With Order","Free Classical Music on SS Disk?   Yes or No"]
[3,"No extra charge for slides shipped in carousels with 80 or 140 slide slots.","Duplicates Sets? "]
[4,"If you ship slides to us in carousels with 100 slide slots, we have to charge you 5 cents per slide to take them out for you and stack them properly.","Thumbnail sheets?  Yes   or   No"]
[5,"See How To Stack Your Slides. Click Here.","Prep work?"]
[6,"Watch our MOVIES so you\nSTACK your slides correctly. Click here."]
[7,"Please PRINT Your info below."]
[8,"NAME:   "]
[9,"ADDRESS:   "]
[10,"City, State, Zip   "]
[11,"Sending us your order indicates you have read and agree to our online terms and conditions. Click here if you haven't."]
[12,"Signature:_____________________________DATE: ____________"]
[13,"PHONE:   "]
[14,"EMAIL:   "]
[15,"35mm slides scanned at 4000 ppi will typically have a file size of from 3-10 megs. One dimension of the image will be approx. 5400 pixels."]
[16]
[17,"Note: Because of possible damage,\nwe do NOT clean your films. Clean with a microfiber cloth before you send them.","  Enter Est. Total BELOW.","$20 Minimum for scanning"]
[18,"35mm Slides and most others, in 2x2\" holders, normal thickness, to scan ",null,null,0.39,{"$f":"IF(C18=0,0,C18*E18)","v":0}]
[19,"SLIDES TO PRINTS 2\"x2\" holders",null,null,1.2,0]
[20,"STEREO SLIDES TO PRINTS",null,null,1.5,0]
[21,"110 slides. 1 1/8\" x 1 1/8\" holders",null,null,1,0]
[22,"127 Or Super Slide 2x2\" holders",null,null,1,0]
[23,"Unmounted 35mm Films: No, we don't scan these. But, if you send them anyhow….",null,null,3,0]
[24,"   1. 2x2\" Bent or Damaged Slides\n   2. 2x2\" Glass Slides\n   3. 2x2\" Thicker than normal slide holders\n   4. 2x2\" Under Water Slides: (Slides taken underwater)\n   5. 2x2\" Medical or Dental Slides",null,null,1,0]
[25,"PAPER PHOTO SCANNING"]
[26,"Number of up to 4x6\" Paper Photos to Scan",null,null,0.39,{"$f":"IF(E26=\"\",\"\",E26*C26)","v":0}]
[27,"Number of up to 5x7\" Paper Photos to Scan",null,null,0.59,{"$f":"IF(E27=\"\",\"\",E27*C27)","v":0}]
[28,"Number of up to 8x10\" Paper Photos to Scan\nIncludes Newspaper articles",null,null,0.69,{"$f":"IF(E28=\"\",\"\",E28*C28)","v":0}]
[29,"Additional Services",null,null,"Cost Per"]
[30,null,"Sets Wanted","Shts Per Set"]
[31,"Thumbnail Catalog Set Printout. 30 images per page",null,{"$f":"IF(C31=0,0,ROUNDUP((((#REF!)/30)),0))","v":0},1,{"$f":"IF(D31=0,0,(D31*C31)*E31)","v":0}]
[32,"Click here for info about Thumbnail Catalogs",null,null,null,{"$f":"SUM(F31:F31)","v":0}]
[33,"Text Frames.          Send text in an email ","Text Frames:  ",null,1,{"$f":"E33*D33","v":0}]
[34,"Click here for Text Frame Info"]
[35,"Inter-Mix dissimilar mediums.\nEx: paper photos with slides. 127 slides with regular slides","This is an option for those that need it. $1 per insertion.",null,1,{"$f":"E35*D35","v":0}]
[36,"Click for info on \"Inter-Mixing\""]
[37,"Extra \"Shows\" or \"Chapters\"  12 are Free. These are NOT titles. Each stack or combination of stacks or carousels is a show.",null,null,1,{"$f":"E37*D37","v":0},null,null,null,null,null," =Music(rngColours,l35)"]
[38,"PREP: Please do my slide orientation prep for me!\nI don’t have the time.",false,{"$f":"IF(C38=TRUE,#REF!,\"\")","v":""},0.05,{"$f":"IF(C38=TRUE,D38*E38,0)","v":0}]
[39,"Number your slides in each stack, if order is important.",null,null,"Sub Total:"]
[40]
[41,"Select SLIDE SHOW disk or IMAGES Data Disk","Select disk type","Disks"]
[42,"JPG images on an Images ONLY Data Disk",null,null,null,null,{"$f":"IF(H42=1,\"JPG\",\"DVD Slide Show\")","v":"JPG"},1,"Data disk","SS disk","thumbdrive"]
[43,"Slide Show Disk with images stored on disk. \nYes, images can be pulled off.",null,null,{"$f":"IF(H42=2,\"No Charge\",IF(H42=1,\"\",\"\"))","v":""},null,null,null,{"$f":"ROUNDUP(((#REF!))/400,0)","v":{"$error":"#REF!"}},{"$f":"ROUNDUP(((#REF!))/350,0)","v":{"$error":"#REF!"}},{"$f":"ROUNDUP(((#REF!))/100,0)","v":{"$error":"#REF!"}},{"$f":"\"Size Thumbdrive to send with order = \"&ROUNDUP(((#REF!))/300,0)&\" Gigs\"","v":{"$error":"#REF!"}}]
[44,"DUPLICATES or Extra disk sets","Duplicates or Extra Sets Wanted","Est. Disks needed","$ per disk"]
[45,"Duplicate or extra DATA Disk Sets",null,null,10,{"$f":"IF(D45=0,0,(D45)*E45)","v":0},null,1,"If I chose the DVD Slide Show, I WANT you to use your tasteful and non-intrusive music "]
[46,"Duplicates Slide Show Disk Sets.",null,null,10,{"$f":"IF(D46=0,0,(D46)*E46)","v":0},{"$f":"SUM(F43:F46)","v":0},null,"If I chose the DVD Slide Show, above, I do NOT want music on my DVD slide show disks."]
[47,"RUSH SERVICE: Work my job on Overtime. I NEED it now.\nSend FULL payment as Money Order or Official Bank Check.\nPersonal checks take 10 days to clear.",null,false,1.5,{"$f":"IF(D47=TRUE,(#REF!*E47)-#REF!,0)","v":0},null,null,null,null,null,null,{"$f":"+A5-A4&\" days\"","v":"1 days"}]
[48,null,null,null,"Sub Total:",null,null,null,null,null,null,"Pickup","Priority Mail"]
[49,"NAME or TITLE desired on disk?\nIf you do not specify a title, we will title as \"Family Photos\""]
[50]
[51,"If you feel that we made you a promise of some sort, by telephone or email,\nplease explain this in the box below. (Please type on-line, if possible.)"]
[52,"Please Read Carefully:"]
[53,"Please watch and follow  the instruction movies for Slide and Photo prep. Click HERE if you haven't watched them.\nWe have to charge a small fee, if we do the slide prep for you."]

{"sheet":"Control sheet","index":1,"n_rows":54,"n_cols":4,"rows_kept":54,"cut":false,"hidden":false,"merged":[]}
[]
[]
["Link from \"do my slide prep for me on sheet one\"",true]
[]
[]
[]
[]
[]
[]
[]
[]
[]
[]
[]
[]
[]
[]
[]
[]
[]
[]
[]
[]
[]
[]
[]
[]
[]
[]
[]
[]
[]
[]
[]
[]
[]
[]
[]
[]
[]
[]
[]
[]
[]
[]
[]
[]
[]
[]
[]
[]
[]
[]
[null,null,null,false]

{"sheet":"Dropdown lists","index":2,"n_rows":3,"n_cols":1,"rows_kept":3,"cut":false,"hidden":false,"merged":[]}
["Create a drop-down list from a range of cells   \nShow All\nHide All\nTo make data entry easier, or to limit entries to certain items that you define, you can create a drop-down list of valid entries that is compiled from cells elsewhere on the worksheet. When you create a drop-down list for a cell, it displays an arrow next to that cell. To enter information in that cell, click the arrow, and then click the entry that you want. \n\nTo create a drop-down list from a range of cells, use the Validation command under the Data menu.\n\nTo create a list of valid entries for the drop-down list, type the entries in a single column or row without blank cells. For example:  A \n1 Sales \n2 Finance \n3 R&D \n4 MIS \n\n Note   You may want to sort the data in the order that you want it to appear in the drop-down list.\n\nIf you want to use another worksheet or another workbook, do one of the following:\nUse a different worksheet in the same workbook   Type the list on that worksheet, and then define a name (name: A word or string of characters that represents a cell, range of cells, formula, or constant value. Use easy-to-understand names, such as Products, to refer to hard to understand ranges, such as Sales!C20:C30.) for the list.\n\nHow?\n\nSelect the cell, range of cells, or nonadjacent selections (nonadjacent selection: A selection of two or more cells or ranges that don't touch each other. When plotting nonadjacent selections in a chart, make sure that the combined selections form a rectangular shape.) that you want to name. \nClick the Name box at the left end of the formula bar (formula bar: A bar at the top of the Excel window that you use to enter or edit values or formulas in cells or charts. Displays the constant value or formula stored in the active cell.). \n\n\n Name box\n\nType the name for the cells, for example, ValidDepts. \nPress ENTER. \n Note   You cannot name a cell while you are changing the contents of the cell.\n\nUse a different worksheet in a different workbook  Type the list on that worksheet, and then define a name with an external reference to the list. \n\nHow?\n\n"]
["Open the workbook that contains the list of drop-down entries. \nOpen the workbook where you want to validate cells, point to Name on the Insert menu, and then click Define. \nIn the Names in workbook box, type the name, for example, ValidDepts. \nAccept the default value in the Refers to: box, and then click OK.\nIn the Refers to box, delete the contents, and keep the insertion pointer in the box. \nOn the Window menu, click the name of the workbook that contains the list of drop-down entries, and then click the worksheet that contains the list. \nSelect the cells containing the list. \nIn the Define Name dialog box, click Add, and then click Close. \n  Notes  \n\nIf several users need to open the workbook simultaneously, set the workbook to read-only recommended when you save it. For more information, see Prompt to open a file as read-only.\nThe workbook must be open for users to use the validation list. You can record a macro to open it automatically whenever the workbook with the data validation is opened. For more information about creating and using macros, see About macros in Excel.\n\nSelect the cell where you want the drop-down list. \nOn the Data menu, click Validation, and then click the Settings tab. \nIn the Allow box, click List. \nTo specify the location of the list of valid entries, do one of the following: \nIf the list is in the current worksheet, enter a reference to your list in the Source box. \nIf the list is on a different worksheet in the same workbook or a different workbook, enter the name that you defined for your list in the Source box.\nIn both cases, make sure that the reference or name is preceded with an equal sign (=). For example, enter =ValidDepts. \n\nMake sure that the In-cell drop-down check box is selected. \nTo specify whether the cell can be left blank, select or clear the Ignore blank check box. \nOptionally, display an input message when the cell is clicked.\n\nHow?\n\n"]
["Click the Input Message tab.\nMake sure that the Show input message when cell is selected check box is selected.\nType the title and text for the message (up to 225 characters).\nSpecify how you want Microsoft Office Excel to respond when invalid data is entered.\n\nHow?\n\nClick the Error Alert tab, and make sure that the Show error alert after invalid data is entered check box is selected. \nSelect one of the following options for the Style box: \nTo display an information message that does not prevent entry of invalid data, click Information.\nTo display a warning message that does not prevent entry of invalid data, click Warning.\nTo prevent entry of invalid data, click Stop.\nType the title and text for the message (up to 225 characters). \n Note   If you don't enter a title or text, the title defaults to \"Microsoft Excel\" and the message to: \"The value you entered is not valid. A user has restricted values that can be entered into this cell.\"\n\n  Notes  \n\nThe width of the drop-down list is determined by the width of the cell that has the data validation. You may need to adjust the width of that cell to prevent truncating the width of valid entries that are wider than the width of the drop-down list.\nThe maximum number of entries that you can have in a drop-down list is 32,767.\nIf the validation list is on another worksheet in the same workbook or another workbook and you want to prevent users from seeing it or making changes, consider hiding and protecting that worksheet. For more information, see Display or hide a workbook or sheet and Overview of security and protection in Excel."]

{"sheet":"Conditional Formatting","index":3,"n_rows":2,"n_cols":1,"rows_kept":2,"cut":false,"hidden":false,"merged":[]}
["Conditional Formatting"]
["# Select the cell.\n# Choose Conditional Formatting from the Format menu. Excel displays the Conditional Formatting dialog box"]

{"sheet":"Group box with buttons","index":4,"n_rows":35,"n_cols":2,"rows_kept":35,"cut":false,"hidden":false,"merged":[]}
["Group Box and Option Buttons"]
[]
[]
["The Group Box is a control that is specifically used to keep Option Buttons together and have them work as a group. To illustrate this, let’s go to a new sheet, and add a nice big Group Box:"]
[]
["1. Click the Group Box on the Forms toolbar"]
["2. Starting at the upper left of cell A3, left click and drag your mouse to cover to the bottom right of D16"]
[]
["Now, add six Option Buttons to the group:"]
[]
["1. Click Option Button and draw it within the Group Box, starting upper left of B4 to lower right of C4"]
["2. Do this 5 more times, on rows 6, 8, 10, 12 and 14"]
["3. Change the names, from top to bottom, to Red, Orange, Yellow, Green, Blue, Purple"]
[]
["Yes, this was a little painful and tedious, but it gives us a way to present our users with choices. What we want to do now is figure out what choice they made, so right click one of the Option Buttons and choose “Format Control”. If you are not already on the Control tab, select it and notice that you can “Uncheck” the option button should you need to. In addition, we have the option to set a Cell Link here, so let’s set that to E3 and say OK."]
[]
["Before we move on, let’s set up the formula to return the chosen colour. In F3, enter the formula =Index(rngColours,E3)."]
[]
["Now, try selecting on of the option buttons. You should see the colour you’ve chosen show up in F3. I should point out that this has nothing to do with the names you assigned to the buttons, and everything to do with the value you chose. This is why we made sure we named the buttons from top to bottom in the order our list was set."]
[null,1]
[]
[]
[]
[]
[]
[]
[]
[]
[]
[]
[]
["A couple of additional points of interest here:"]
[]
["1. Only one Option Button within the frame can be selected at a time. If you add a button outside the frame, however, it could be selected as well as one from within the frame. Likewise if you have multiple frames… one in each."]
["2. Only one cell link needed to be set up. This setting affects all option buttons within the frame.\nright-click the control, and then click Format Control.\nTo set the control properties, do the following:\n\n   1. Under Value, specify the initial state of the option button by doing one of the following:\n          * To display an option button that is selected, click Checked.\n          * To display an option button that is cleared, click Unchecked.\n   2. In the Cell link box, enter a cell reference that contains the current state of the option button.\n\n      The linked cell returns the number of the selected option button in the group of options. Use the same linked cell for all options in a group. The first option button returns a 1, the second option button returns a 2, and so on. If you have two or more option groups on the same worksheet, use a different linked cell for each option group.\n\n      Use the returned number in a formula to respond to the selected option.\n\n      For example, a personnel form, with a Job type group box, contains two option buttons labeled Full-time and Part-time linked to cell C1. After a user selects one of the two options, the following formula in cell D1 evaluates to \"Full-time\" if the first option button is selected or \"Part-time\" if the second option button is selected.\n\n      =IF(C1=1,\"Full-time\",\"Part-time\")\n\n      If you have three or more options to evaluate in the same group of options, you can use the CHOOSE or LOOKUP functions in a similar manner."]

{"sheet":"Changes to make","index":5,"n_rows":25,"n_cols":13,"rows_kept":25,"cut":false,"hidden":false,"merged":[[17,1,17,5],[21,1,21,2]]}
[{"$f":"IF(D17>0,\"Spec.\",\"\")","v":""},null,{"$f":"IF(D55>0,\"Sign\",\"\")","v":""},null,"this is from order-form.xls"]
[{"$f":"IF(D57=0,\"\",IF(F40=2,\"SS\",\"JPG\"))","v":""},{"$f":"IF(D33>0,\"TF\",\"\")","v":""},{"$f":"IF(D29>0,\"PRTS\",\"\")","v":""},{"$f":"IF(B51=TRUE,\"RUSH\",\"\")","v":""}]
[{"$f":"IF(D57=0,\"\",IF(A2=\"JPG\",\"\",IF(F43=TRUE,\"Music\",\"No Music\")))","v":""},{"$f":"IF(D48>0,\"Dupe\",\"\")","v":""},{"$f":"IF(A16=0,\"\",\"127\")","v":"127"},{"$f":"IF(A36=TRUE,\"Prep\",\"\")","v":""}]
[{"$f":"IF(D31>0,\"Thmbs\",\"\")","v":""},{"$f":"IF(F40=3,\"CDs\",\"\")","v":""},{"$f":"IF(D56>0,\"WI\",\"\")","v":""},{"$f":"IF(B66>0,\"Ins.\",\"\")","v":""}]
[]
["Short cut key to switch display of formaulas is CTRL `"]
["Copy below from order-form.xls"]
[38,"Select SLIDE SHOW disk or IMAGES ONLY Data Disk","Select disk type","Disks"]
[39,"JPG images on a DVD Data Disk",null,{"$f":"IF(H10=TRUE,\"\",IF(G9=\"JPG\",I11,IF(G9=\"DVD Slide Show\",\"\",\"\")))","v":{"$error":"#REF!"}},{"$f":"IF(H10=TRUE,\"\",IF(H9=1,\"NO CHARGE!\",\"\"))","v":"NO CHARGE!"},null,{"$f":"IF(H9=1,\"JPG\",\"DVD Slide Show\")","v":"JPG"},1,"Data disk","SS disk","thumbdrive"]
[40,{"$f":"IF(H9=2,\"\",\"I want CD data disks instead of DVD data disks\")","v":"I want CD data disks instead of DVD data disks"},null,{"$f":"IF(H9=2,0,IF(H9=1,0,(ROUNDUP(((#REF!))/160,0))))","v":0},{"$f":"IF(H9=2,0,10)","v":10},{"$f":"IF(H9=2,0,IF(H9=1,0,IF(D10=0,0,(D10-1)*E10)))","v":0}]
[41,"DVD Slide Show Disk with images stored on disk",null,{"$f":"IF(G9=\"JPG\",\"\",IF(G9=\"DVD Slide Show\",J11,\"\"))","v":""},"NO CHARGE!",null,null,null,{"$f":"ROUNDUP(((#REF!))/1500,0)","v":{"$error":"#REF!"}},{"$f":"ROUNDUP(((#REF!))/600,0)","v":{"$error":"#REF!"}},{"$f":"ROUNDUP(((#REF!))/600,0)","v":{"$error":"#REF!"}},{"$f":"\"Size Thumbdrive to send with order = \"&ROUNDUP(((#REF!))/500,0)&\" Gigs\"","v":{"$error":"#REF!"}}]
[42,{"$f":"IF(H9=2,\"Music on your Slide Show Disk? Check the box for YES :\",\"\")","v":""},null,null,null,null,"Music on disk?",false]
[43,"DUPLICATES or Extra disk sets","Duplicates or Extra Sets Wanted","Disks needed","$ per disk"]
[44,"Duplicates or Extra CD data disks instead of DVD data disks",0,{"$f":"ROUNDUP(((#REF!))/160,0)*C14","v":{"$error":"#REF!"}},10,{"$f":"IF(D14=0,0,(D14)*E14)","v":{"$error":"#REF!"}},null,1,"If I chose the DVD Slide Show, I WANT you to use your tasteful and non-intrusive music "]
[45,"Duplicate or Extra DVD DATA Disk Sets",0,{"$f":"ROUNDUP(((#REF!))/1500,0)*C15","v":{"$error":"#REF!"}},10,{"$f":"IF(D15=0,0,(D15)*E15)","v":{"$error":"#REF!"}}]
[46,"Duplicates or Extra DVD Slide Show Disk Sets",0,{"$f":"ROUNDUP(((#REF!))/600,0)*C16","v":{"$error":"#REF!"}},10,{"$f":"IF(D16=0,0,(D16)*E16)","v":{"$error":"#REF!"}},{"$f":"SUM(F10:F16)","v":{"$error":"#REF!"}},null,"If I chose the DVD Slide Show, above, I do NOT want music on my DVD slide show disks."]
[47,null,null,null,"Total for Dupes",{"$f":"SUM(F14:F16)","v":{"$error":"#REF!"}}]
[48,"We can work with you on what you need. Call if you don't see it listed."]
[49,{"$f":"IF(D20=TRUE,\"Approximate\",\"\")","v":""},{"$f":"IF(D20=TRUE,\" days to work\",\"\")","v":""},null,"Sub Total:",{"$f":"SUM(F6+F10+F12+F17)","v":{"$error":"#REF!"}},null,null,null,null,null,{"$f":"(F21*L23)","v":{"$error":"#REF!"}}]
[50,"RUSH SERVICE\nSend FULL payment as Money Order or Official Bank Check.\nPersonal checks take 10 days to clear.",{"$f":"IF(D20=TRUE,ROUNDUP(1+(#REF!/250),0),\"\")","v":""},false,1.5,{"$f":"IF(D20=TRUE,(F19*E20)-F19,0)","v":0},null,null,null,null,null,null,{"$f":"+#REF!-#REF!&\" days\"","v":{"$error":"#REF!"}}]
[51,null,null,null,"Sub Total:",{"$f":"(F20+F19)","v":{"$error":"#REF!"}},null,null,null,null,null,"Pickup","Priority Mail"]
[52,"Shipping is estimated and will be determined by the final weight and distance. We don't know what your job will weigh but return shipping should be very close to what it costs you to send to us. We do not profit from return shipping to you.",null,"Select: Shipping Or Pickup:","Priority Mail",{"$f":"IF(E22=\"Pickup\",0,G22)","v":{"$error":"#REF!"}},{"$f":"SUM(H22+I22+J22)","v":{"$error":"#REF!"}},{"$f":"IF(#REF!=0,0,IF(#REF!<20,1.5,IF(#REF!<50,2,IF(#REF!<101,2.5,IF(#REF!<201,3,IF(#REF!<301,4,IF(#REF!<401,5,IF(#REF!<501,6,\"7\"))))))))","v":{"$error":"#REF!"}},{"$f":"IF(#REF!>0,2,0)","v":{"$error":"#REF!"}},{"$f":"IF(F21=0,0,IF(E22=\"Local Pickup\",0,IF(E22=\"Priority Mail\",IF(#REF!<=39,K22,K22+(#REF!*L22)))))","v":{"$error":"#REF!"}},5.65,0.03,{"$f":"IF(F18<=50,9,(F18*0.02)+9)","v":9}]
[]
["Check Sales Taxes"]
["Check postage costs"]

{"sheet":"Check boxes","index":6,"n_rows":125,"n_cols":8,"rows_kept":125,"cut":false,"hidden":false,"merged":[]}
[]
[]
[null,null,null,null,null,null,null,true]
[]
[]
[]
[]
[]
[]
[null,null,null,null,null,null,null,true]
[]
[null,null,null,null,null,null,null,true]
[]
[null,null,null,null,null,null,null,true]
[]
[]
[]
[]
[]
[]
[]
[]
[]
[]
[]
[]
[]
[]
[]
[]
[]
[]
[]
[]
[]
[]
[]
[]
[]
[]
[]
[]
[]
[]
[]
[]
[]
[]
[]
[]
[]
[]
[]
[]
[]
[]
[]
[]
[]
[]
[]
[]
[]
[]
[]
[]
[]
[]
[]
[]
[]
[]
[]
[]
[]
[]
[]
[]
[]
[]
[]
[]
[]
[]
[]
[]
[]
[]
[]
[]
[]
[]
[]
[]
[]
[]
[]
[]
[]
[]
[]
[]
[]
[]
[]
[]
[]
[]
[]
[]
[]
[]
[]
[]
[]
[]
[]
[]
[]
[]
[]
[]
[]
[]
[null,null,null,null,null,null,null,false]

{"sheet":"_SSC","index":7,"n_rows":7,"n_cols":5,"rows_kept":7,"cut":false,"hidden":true,"merged":[]}
[null,null,"{\"IsHide\":false,\"SheetId\":0,\"Name\":\"Sheet1\",\"HiddenRow\":0,\"VisibleRange\":\"\",\"SheetTheme\":{\"TabColor\":\"\",\"BodyColor\":\"\",\"BodyImage\":\"\"}}","{\"ButtonStyle\":0,\"Name\":\"\",\"HideSscPoweredlogo\":false,\"LiveShare\":{\"Enable\":true},\"CopyProtect\":{\"IsEnabled\":false,\"DomainName\":\"\"},\"Theme\":{\"BgColor\":\"#FFFFFFFF\",\"BgImage\":\"\",\"InputBorderStyle\":2},\"Layout\":0,\"LayoutConfig\":{\"IsSamePagesHeight\":false},\"SmartphoneSettings\":{\"ViewportLock\":true,\"UseOldViewEngine\":false,\"EnableZoom\":false,\"EnableSwipe\":false,\"HideToolbar\":false,\"InheritBackgroundColor\":false,\"CheckboxFlavor\":1,\"ShowBubble\":false},\"SmartphoneTheme\":0,\"InputDetection\":1,\"Toolbar\":{\"Position\":1,\"IsSubmit\":true,\"IsPrint\":true,\"IsPrintAll\":false,\"IsReset\":true,\"IsUpdate\":true},\"AspnetConfig\":{\"BrowseUrl\":\"http://localhost/ssc\",\"FileExtension\":0},\"NodejsConfig\":{\"LocalPort\":3000},\"ConfigureSubmit\":{\"IsShowCaptcha\":false,\"IsUseSscWebServer\":true,\"ReceiverCode\":\"1234minn@gmail.com\",\"IsFreeService\":false,\"IsAdvanceService\":true,\"IsDemonstrationService\":false,\"AfterSuccessfulSubmit\":\"\",\"AfterFailSubmit\":\"\",\"AfterCancelWizard\":\"\",\"IsUseOwnWebServer\":false,\"OwnWebServerURL\":\"\",\"OwnWebServerTarget\":\"\",\"SubmitTarget\":0},\"Flavor\":0,\"Edition\":2,\"IgnoreBgInputCell\":false}","{\"Captcha\":{\"Heading\":\"Enter the number displayed below.\",\"Message\":\"This is to verify that you are a human visitor, to prevent automated form submissions.\",\"OkButton\":\"OK\",\"CancelButton\":\"Cancel\",\"ErrorMessage\":\"Your answer is incorrect, please try again.\"},\"RequiredField\":{\"ErrorMessage\":\"The fields with the red border are required.\",\"OkButton\":\"OK\",\"DDLDefaultRequiredText\":\"Please Select\"},\"WizardButton\":{\"Next\":\"Next\",\"Previous\":\"Previous\",\"Cancel\":\"Cancel\",\"Finish\":\"Finish\"},\"ToolbarButton\":{\"Submit\":\"Submit\",\"Print\":\"Print\",\"PrintAll\":\"Print All\",\"Reset\":\"Reset\",\"Update\":\"Update\",\"Back\":\"Back\"},\"BrowserAndLocation\":{\"Browsers\":[{\"Name\":\"firefox.exe\"}],\"ConversionPath\":\"F:\\\\A_WebPage\\\\_Business Sites\\\\oldphoto.COM\\\\pages\"},\"AdvancedSettingsModels\":[],\"Dropbox\":{\"AccessToken\":\"\",\"AccessSecret\":\"\"},\"SpreadsheetServer\":{\"Username\":\"\",\"Password\":\"\",\"ServerUrl\":\"\"},\"ConfigureSubmitDefault\":{\"Email\":\"1234minn@gmail.com\"},\"MessageBubble\":{\"Close\":false,\"TopMsg\":0}}"]
[null,null,"{\"IsHide\":true,\"SheetId\":0,\"Name\":\"Control sheet\",\"HiddenRow\":0,\"VisibleRange\":\"\",\"SheetTheme\":{\"TabColor\":\"\",\"BodyColor\":\"\",\"BodyImage\":\"\"}}"]
[null,null,"{\"IsHide\":true,\"SheetId\":0,\"Name\":\"Dropdown lists\",\"HiddenRow\":0,\"VisibleRange\":\"\",\"SheetTheme\":{\"TabColor\":\"\",\"BodyColor\":\"\",\"BodyImage\":\"\"}}"]
[null,null,"{\"IsHide\":true,\"SheetId\":0,\"Name\":\"Conditional Formatting\",\"HiddenRow\":0,\"VisibleRange\":\"\",\"SheetTheme\":{\"TabColor\":\"\",\"BodyColor\":\"\",\"BodyImage\":\"\"}}"]
[null,null,"{\"IsHide\":true,\"SheetId\":0,\"Name\":\"Group box with buttons\",\"HiddenRow\":0,\"VisibleRange\":\"\",\"SheetTheme\":{\"TabColor\":\"\",\"BodyColor\":\"\",\"BodyImage\":\"\"}}"]
[null,null,"{\"IsHide\":true,\"SheetId\":0,\"Name\":\"Changes to make\",\"HiddenRow\":0,\"VisibleRange\":\"\",\"SheetTheme\":{\"TabColor\":\"\",\"BodyColor\":\"\",\"BodyImage\":\"\"}}"]
[null,null,"{\"IsHide\":true,\"SheetId\":0,\"Name\":\"Check boxes\",\"HiddenRow\":0,\"VisibleRange\":\"\",\"SheetTheme\":{\"TabColor\":\"\",\"BodyColor\":\"\",\"BodyImage\":\"\"}}"]